Cogmind - Beta 10.2 @@@ ROGUE MODE // 2021.10.28 @ 11:30:06 Player: Kom Result: Destroyed by Y-64 Sentinel with Wave Gun Performance ------------- Evolutions (6) 3000 Regions Visited (8) 1600 Robots Destroyed (1) 5 Value Destroyed (34) 34 Prototype IDs (0) 0 Alien Tech Used (0) 0 Bonus (200) 200 TOTAL SCORE: 4839 Bonus ------- Pacifist 200 Cogmind --------- Core Integrity 0/1150 Matter 259/300 Energy 98/100 System Corruption 0% Temperature Cool (9) Movement Core (50) Location -4/Factory Parts ------- > --- POWER (3) -------- (None) > --- PROPULSION (6) --- (None) > --- UTILITY (7) ------ (None) > --- WEAPON (3) ------- (None) > --- INVENTORY (4) ---- (None) Peak State ------------ None Favorites ----------- Power None Propulsion None Utility None Weapon None Build | -11 -10 -9 -9 -8 -7 -6 -5 -4 ------- Run | Scr Mat Mat Min Mat Fac Fac Fac Fac Slots Evolved 12 | . . 2 . 2 2 2 2 2 Power 2 | . . . . . 1 1 . . Propulsion 4 | . . 2 . 1 . . . 1 Utility 5 | . . . . 1 1 1 1 1 Weapon 1 | . . . . . . . 1 . Parts Attached . | . . . . . . . . . Power . | . . . . . . . . . Engine . | . . . . . . . . . Core . | . . . . . . . . . Reactor . | . . . . . . . . . Propulsion . | . . . . . . . . . Treads . | . . . . . . . . . Leg . | . . . . . . . . . Wheel . | . . . . . . . . . Hover . | . . . . . . . . . Flight . | . . . . . . . . . Utility . | . . . . . . . . . Device . | . . . . . . . . . Storage . | . . . . . . . . . Processor . | . . . . . . . . . Hackware . | . . . . . . . . . Protection . | . . . . . . . . . Artifact . | . . . . . . . . . Weapon . | . . . . . . . . . Energy Gun . | . . . . . . . . . Energy Cannon . | . . . . . . . . . Ballistic Gun . | . . . . . . . . . Ballistic Cannon . | . . . . . . . . . Launcher . | . . . . . . . . . Special Weapon . | . . . . . . . . . Impact Weapon . | . . . . . . . . . Slashing Weapon . | . . . . . . . . . Piercing Weapon . | . . . . . . . . . Special Melee Weapon . | . . . . . . . . . Unidentified Prototypes . | . . . . . . . . . Parts Lost . | . . . . . . . . . Power . | . . . . . . . . . Propulsion . | . . . . . . . . . Utility . | . . . . . . . . . Weapon . | . . . . . . . . . Highest Loss Streak . | . . . . . . . . . Average Slot Usage (%) . | . . . . . . . . . Naked Turns 861 | . 55 252 28 46 86 80 124 190 Heaviest Build . | . . . . . . . . . Greatest Support 3 | 3 3 3 3 3 3 3 3 3 Greatest Overweight (x) . | . . . . . . . . . Average Overweight (x) . | . . . . . . . . . Largest Inventory Capacity 4 | 4 4 4 4 4 4 4 4 4 Average Capacity 4 | 4 4 4 4 4 4 4 4 4 Most Carried . | . . . . . . . . . Average Carried . | . . . . . . . . . Final Capacity 4 | 4 4 4 4 4 4 4 4 4 Final Carried . | . . . . . . . . . Class Distribution -------------------- 100% | Mutant Dominant Class ---------------- Mutant | -10/Materials Mutant | -9/Materials Mutant | -9/Mines Mutant | -8/Materials Mutant | -7/Factory Mutant | -6/Factory Mutant | -5/Factory Mutant | -4/Factory Resources | -11 -10 -9 -9 -8 -7 -6 -5 -4 ----------- Run | Scr Mat Mat Min Mat Fac Fac Fac Fac Matter Collected 104 | 45 . 50 . . . . . 9 Remotely . | . . . . . . . . . Salvage Created 50 | . . 50 . . . . . . Parts 4 | . . 4 . . . . . . Haulers Intercepted . | . . . . . . . . . Recyclers Shooed . | . . . . . . . . . Parts Field Recycled . | . . . . . . . . . Retrieved Matter . | . . . . . . . . . Parts Self-Destructed . | . . . . . . . . . Prevented . | . . . . . . . . . Kills | -11 -10 -9 -9 -8 -7 -6 -5 -4 ------- Run | Scr Mat Mat Min Mat Fac Fac Fac Fac Combat Hostiles Destroyed 1 | . . 1 . . . . . . Melee 1 | . . 1 . . . . . . Classes Destroyed 1 | . . 1 . . . . . . Grunt 1 | . . 1 . . . . . . Best Kill Streak 1 | . . 1 . . . . . . Combat Bots Only 1 | . . 1 . . . . . . Max Kills in Single Turn 1 | . . 1 . . . . . . Gunslinging . | . . . . . . . . . Exploded . | . . . . . . . . . Melee 1 | . . 1 . . . . . . Uniques/NPCs Destroyed . | . . . . . . . . . Combat | -11 -10 -9 -9 -8 -7 -6 -5 -4 -------- Run | Scr Mat Mat Min Mat Fac Fac Fac Fac Damage Taken 2079 | . 22 215 134 328 . 114 95 1171 Core 2079 | . 22 215 134 328 . 114 95 1171 Absorbed by Shields . | . . . . . . . . . Core Remaining (%) 74 | 100 91 . 12 40 100 86 90 . Volleys Fired . | . . . . . . . . . Largest . | . . . . . . . . . Hottest . | . . . . . . . . . Shots Fired . | . . . . . . . . . Gun . | . . . . . . . . . Cannon . | . . . . . . . . . Launcher . | . . . . . . . . . Special . | . . . . . . . . . Kinetic . | . . . . . . . . . Thermal . | . . . . . . . . . Explosive . | . . . . . . . . . Electromagnetic . | . . . . . . . . . Robot Hit Streak . | . . . . . . . . . Robot Miss Streak . | . . . . . . . . . Penetration Max . | . . . . . . . . . Secondary Targets . | . . . . . . . . . Shots Hit Robots . | . . . . . . . . . Core Hits 5 | . . 5 . . . . . . Critical Hits . | . . . . . . . . . Critical Kills . | . . . . . . . . . Critical Parts Destroyed . | . . . . . . . . . Melee Attacks . | . . . . . . . . . Impact . | . . . . . . . . . Slashing . | . . . . . . . . . Piercing . | . . . . . . . . . Sneak Attacks . | . . . . . . . . . Combat Hostiles . | . . . . . . . . . Follow-up Attacks . | . . . . . . . . . Damage Inflicted 84 | . . 58 . 26 . . . . Guns . | . . . . . . . . . Cannons . | . . . . . . . . . Explosions . | . . . . . . . . . Melee . | . . . . . . . . . Ramming 84 | . . 58 . 26 . . . . Kinetic . | . . . . . . . . . Thermal . | . . . . . . . . . Explosive . | . . . . . . . . . Electromagnetic . | . . . . . . . . . Impact . | . . . . . . . . . Slashing . | . . . . . . . . . Piercing . | . . . . . . . . . Highest Corruption . | . . . . . . . . . Average Corruption . | . . . . . . . . . Corruption Purged . | . . . . . . . . . Overload Shots . | . . . . . . . . . Overflow Damage . | . . . . . . . . . Projectiles . | . . . . . . . . . Explosions . | . . . . . . . . . Melee . | . . . . . . . . . Knockbacks 1 | . . 1 . . . . . . Impact 1 | . . 1 . . . . . . Kinetic . | . . . . . . . . . Secondary . | . . . . . . . . . Self-Inflicted Damage 37 | . . 25 . 12 . . . . Shots . | . . . . . . . . . Rammed 20 | . . 16 . 3 . . . 1 Targets Rammed 20 | . . 16 . 3 . . . 1 Kicked . | . . . . . . . . . Crushed . | . . . . . . . . . Highest Temperature . | . . . . . . . . . Average Temperature . | . . . . . . . . . Received Heat Transfer 411 | . 12 78 . 72 . 24 45 180 Siege Activations . | . . . . . . . . . Robots Corrupted . | . . . . . . . . . Combat Hostiles . | . . . . . . . . . Parts Fried . | . . . . . . . . . Impact Corruptions . | . . . . . . . . . Robots Melted . | . . . . . . . . . Combat Hostiles . | . . . . . . . . . Parts Melted . | . . . . . . . . . Heat Transferred . | . . . . . . . . . Parts Sabotaged . | . . . . . . . . . Parts Stolen . | . . . . . . . . . Parts Stripped . | . . . . . . . . . Power Chain Reactions . | . . . . . . . . . Missiles Intercepted . | . . . . . . . . . Alert | -11 -10 -9 -9 -8 -7 -6 -5 -4 ------- Run | Scr Mat Mat Min Mat Fac Fac Fac Fac Peak Influence 204 | . 30 162 63 129 58 43 81 204 Initial 63 | . . 12 63 24 58 28 21 39 Average 79 | . 17 116 63 69 58 29 32 116 Maximum Alert Level 1 | . . . . . . . . 1 Low Security (%) 99 | 100 100 100 100 100 100 100 100 99 Level 1 . | . . . . . . . . . Level 2 . | . . . . . . . . . Level 3 . | . . . . . . . . . Level 4 . | . . . . . . . . . Level 5 . | . . . . . . . . . High Security . | . . . . . . . . . Max Security . | . . . . . . . . . Squads Dispatched 8 | . . 2 . 1 2 . 1 2 Investigation 3 | . . 1 . . 1 . . 1 Extermination . | . . . . . . . . . Reinforcement 5 | . . 1 . 1 1 . 1 1 Assault . | . . . . . . . . . Garrison . | . . . . . . . . . Intercept . | . . . . . . . . . Construction Impeded . | . . . . . . . . . Haulers Reinforced . | . . . . . . . . . Stealth | -11 -10 -9 -9 -8 -7 -6 -5 -4 --------- Run | Scr Mat Mat Min Mat Fac Fac Fac Fac Distress Signals 2 | . . 2 . . . . . . Communications Jammed . | . . . . . . . . . Distress Signals . | . . . . . . . . . Times Spotted 47 | . 3 9 4 14 1 1 6 9 Peak Tracking Total 10 | . 3 5 4 10 2 1 5 6 Tactical Retreats 6 | . . 1 . 1 . . 1 3 Traps | -11 -10 -9 -9 -8 -7 -6 -5 -4 ------- Run | Scr Mat Mat Min Mat Fac Fac Fac Fac Traps Triggered 5 | . . 1 . . 1 1 1 1 Indirectly . | . . . . . . . . . Trap Hack Attempts . | . . . . . . . . . Triggered . | . . . . . . . . . Disarmed . | . . . . . . . . . Reprogrammed . | . . . . . . . . . Reused . | . . . . . . . . . Traps Extracted . | . . . . . . . . . Installed . | . . . . . . . . . Triggered . | . . . . . . . . . Machines | -11 -10 -9 -9 -8 -7 -6 -5 -4 ---------- Run | Scr Mat Mat Min Mat Fac Fac Fac Fac Machines Disabled . | . . . . . . . . . Max in Single Turn . | . . . . . . . . . Machines Sabotaged . | . . . . . . . . . Garrisons Compromised . | . . . . . . . . . Overloaded Fab Kills . | . . . . . . . . . Fab Network Shutdowns . | . . . . . . . . . Hacking | -11 -10 -9 -9 -8 -7 -6 -5 -4 --------- Run | Scr Mat Mat Min Mat Fac Fac Fac Fac Machines Accessed . | . . . . . . . . . Terminals . | . . . . . . . . . Fabricators . | . . . . . . . . . Repair Stations . | . . . . . . . . . Recycling Units . | . . . . . . . . . Scanalyzers . | . . . . . . . . . Garrison Access . | . . . . . . . . . Total Hacks . | . . . . . . . . . Successful . | . . . . . . . . . Failed . | . . . . . . . . . Catastrophic . | . . . . . . . . . Database Lockouts . | . . . . . . . . . Manual . | . . . . . . . . . Terminals . | . . . . . . . . . Fabricators . | . . . . . . . . . Repair Stations . | . . . . . . . . . Recycling Units . | . . . . . . . . . Scanalyzers . | . . . . . . . . . Garrison Access . | . . . . . . . . . Terminal Hacks . | . . . . . . . . . Fabricator Hacks . | . . . . . . . . . Repair Station Hacks . | . . . . . . . . . Recycling Unit Hacks . | . . . . . . . . . Scanalyzer . | . . . . . . . . . Garrison Access Hacks . | . . . . . . . . . Unauthorized Hacks . | . . . . . . . . . Terminals . | . . . . . . . . . Fabricators . | . . . . . . . . . Repair Stations . | . . . . . . . . . Recycling Units . | . . . . . . . . . Scanalyzers . | . . . . . . . . . Garrison Access . | . . . . . . . . . Data Cores Recovered . | . . . . . . . . . Used . | . . . . . . . . . Hacking Detections . | . . . . . . . . . Full Trace Events . | . . . . . . . . . Feedback Events . | . . . . . . . . . Feedback Blocked . | . . . . . . . . . Robot Schematics Acquired . | . . . . . . . . . Robots Built . | . . . . . . . . . Matter . | . . . . . . . . . Time . | . . . . . . . . . Total Robot Build Rating . | . . . . . . . . . Part Schematics Acquired . | . . . . . . . . . Parts Built . | . . . . . . . . . Matter . | . . . . . . . . . Time . | . . . . . . . . . Total Part Build Rating . | . . . . . . . . . Parts Repaired . | . . . . . . . . . Time . | . . . . . . . . . Parts Recycled . | . . . . . . . . . Recycled Matter . | . . . . . . . . . Retrieved Matter . | . . . . . . . . . Retrieved Components . | . . . . . . . . . Parts Scanalyzed . | . . . . . . . . . Part Schematics Acquired . | . . . . . . . . . Parts Damaged . | . . . . . . . . . Bothacking | -11 -10 -9 -9 -8 -7 -6 -5 -4 ------------ Run | Scr Mat Mat Min Mat Fac Fac Fac Fac Used RIF Installer . | . . . . . . . . . Robots Hacked . | . . . . . . . . . Non-combat . | . . . . . . . . . Combat . | . . . . . . . . . Robot Hacks Applied . | . . . . . . . . . Relay Couplers Released . | . . . . . . . . . Robots Rewired . | . . . . . . . . . Allies Hacked . | . . . . . . . . . Hacks Repelled . | . . . . . . . . . Allies | -11 -10 -9 -9 -8 -7 -6 -5 -4 -------- Run | Scr Mat Mat Min Mat Fac Fac Fac Fac Total Allies . | . . . . . . . . . Largest Group . | . . . . . . . . . Highest-Rated Group . | . . . . . . . . . Highest-Rated Ally . | . . . . . . . . . Total Orders . | . . . . . . . . . Ally Attacks . | . . . . . . . . . Total Damage . | . . . . . . . . . Kills . | . . . . . . . . . Allies Corrupted . | . . . . . . . . . Allies Melted . | . . . . . . . . . Intel | -11 -10 -9 -9 -8 -7 -6 -5 -4 ------- Run | Scr Mat Mat Min Mat Fac Fac Fac Fac Robot Analysis Total . | . . . . . . . . . Derelict Logs Recovered . | . . . . . . . . . Drone Launches . | . . . . . . . . . Drone Recoveries . | . . . . . . . . . Exploration | -11 -10 -9 -9 -8 -7 -6 -5 -4 ------------- Run | Scr Mat Mat Min Mat Fac Fac Fac Fac Turns Passed 871 | 10 55 252 28 46 86 80 124 190 Spaces Moved 1294 | 19 109 140 55 85 165 159 220 342 Core 1294 | 19 109 140 55 85 165 159 220 342 Treads . | . . . . . . . . . Legs . | . . . . . . . . . Wheels . | . . . . . . . . . Hover . | . . . . . . . . . Flight . | . . . . . . . . . Fastest Speed 50 | 50 50 50 50 50 50 50 50 50 Average Speed 50 | 50 50 50 50 50 50 50 50 50 Slowest Speed 50 | 50 50 50 50 50 50 50 50 50 Overloaded Moves . | . . . . . . . . . Propulsion Burnouts . | . . . . . . . . . Robots Hopped . | . . . . . . . . . Cave-ins Triggered . | . . . . . . . . . Exploration Rate (%) 14 | 3 33 19 21 20 7 7 11 11 Regions Visited 8 Branch Regions 1 Pre-discovered Areas . | . . . . . . . . . Known Exits Taken . | . . . . . . . . . Unknown Exits Taken 8 | 1 1 1 1 1 1 1 1 . Scrap Searched . | . . . . . . . . . Spaces Dug . | . . . . . . . . . Terrain Destroyed . | . . . . . . . . . Melee . | . . . . . . . . . Projectile . | . . . . . . . . . AOE . | . . . . . . . . . Terrain Rammed . | . . . . . . . . . Walls Destroyed . | . . . . . . . . . Machines Disabled . | . . . . . . . . . Actions | -11 -10 -9 -9 -8 -7 -6 -5 -4 --------- Run | Scr Mat Mat Min Mat Fac Fac Fac Fac Total 1507 | 18 108 321 54 87 167 158 233 361 Wait 201 | . . 166 . . 3 . 14 18 Move 1286 | 18 108 139 54 84 164 158 219 342 Hop . | . . . . . . . . . Pick Up . | . . . . . . . . . Fast Attach . | . . . . . . . . . Attach . | . . . . . . . . . Detach . | . . . . . . . . . Swap . | . . . . . . . . . Drop . | . . . . . . . . . Fire . | . . . . . . . . . Melee . | . . . . . . . . . Ram 20 | . . 16 . 3 . . . 1 Kick . | . . . . . . . . . Crush . | . . . . . . . . . Escape Stasis . | . . . . . . . . . Rewire . | . . . . . . . . . Trap . | . . . . . . . . . Miscellaneous . | . . . . . . . . . Route ------- -11/Scrapyard -10/Materials -9/Materials -9/Mines -8/Materials -7/Factory -6/Factory -5/Factory -4/Factory History --------- Turn | Location | Event 5 | -11/Scrapyard | Discovered new exit (range 12) 11 | -11/Scrapyard | Entered Materials 59 | -10/Materials | Discovered new exit (range 15) 66 | -10/Materials | Entered another Materials area 66 | -9/Materials | Evolved 2 slots: Propulsion x2 304 | -9/Materials | Core integrity fell below 50% 305 | -9/Materials | Build established: Mutant 311 | -9/Materials | Discovered new exit (range 15) 318 | -9/Materials | Entered Mines 328 | -9/Mines | A weapon hastily lodged in a ceiling crevice suddenly fell to the ground 332 | -9/Mines | Core integrity fell below 20% 339 | -9/Mines | Discovered new exit (range 15) 345 | -9/Mines | Received a Rocket Launcher from a helpful Derelict 346 | -9/Mines | Entered Materials 346 | -8/Materials | Evolved 2 slots: Propulsion x1, Utility x1 385 | -8/Materials | Discovered new exit (range 14) 390 | -8/Materials | Core integrity fell below 50% 392 | -8/Materials | Entered Factory 392 | -7/Factory | Evolved 2 slots: Power x1, Utility x1 470 | -7/Factory | Discovered new exit (range 15) 478 | -7/Factory | Entered another Factory area 478 | -6/Factory | Evolved 2 slots: Power x1, Utility x1 513 | -6/Factory | Spotted B-75 Beast 549 | -6/Factory | Discovered new exit (range 14) 558 | -6/Factory | Entered another Factory area 558 | -5/Factory | Evolved 2 slots: Utility x1, Weapon x1 676 | -5/Factory | Discovered new exit (range 13) 682 | -5/Factory | Entered another Factory area 682 | -4/Factory | Evolved 2 slots: Propulsion x1, Utility x1 707 | -4/Factory | Spotted B-86 Titan 729 | -4/Factory | Core integrity fell below 50% 742 | -4/Factory | Core integrity fell below 20% 872 | -4/Factory | Destroyed by Y-64 Sentinel with Wave Gun Last Messages --------------- 00723_ K-01 Serf collects debris. 00724_ Knocked back. 00727_ K-01 Serf collects debris. 00728_ Acquired 9 matter. 00731_ Penetrated by Slug. 00731_ K-01 Serf collects debris. 00734_ Subcomponent Replicator disabled. 00738_ K-01 Serf collects debris. 00741_ Subcomponent Replicator disabled. 00750_ O-24 Administrator: "IFF HANDSHAKE FAILED. SECURING TERMINAL." 00754_ ALERT: Hostiles spotted, dispatching reinforcements to Terminal F009. 00773_ K-01 Serf cleans the Construction Platform. 00799_ Penetrated by Slug. 00802_ Slammed into R-10 Processor. 00858_ Slug penetrates Wall. 00858_ Slug penetrates Nuclear Reactor. 00865_ Penetrated by Slug. 00866_ M-13 Machinist destroyed. 00869_ Slug penetrates Wall. Map ----- +----------------------------------------------------+ | ??????????????????????????????????????? | | ??????????????????????????????????????? | | ??????????????????????????????????????? | | ??????????????????????????????????????? | | ??????????????????????????????????????? | | ??????????????????????????????????????? | | ??????????????????????????????????????? | | ?????????????????????????????????###### | | ?????????????????????????????????# | | ?????????????????????????????????# | | ?????????????????????????????????# "" | | ?????????????????????????????????# "" | | ?????????????????????????????????# "" | | ?????????????????????????????????# "" | | ?????????????????????????????##### "" | | ?????????????????????????????# # | | ??????????????????############ # | | ??????????????????# ## ### | | ??????????????????# """# | | ??????????????????# !! R"# """ | | ??????????????????# !! """ " """ | | ??????????????????# """ """ | | ??????????????????# ## | | ??????????????????# ###### | | ??????????###+###?# #?# | | ??????????# @ #######+##### % | | ????????### T | | ???????+ Y "" | | ???????# ## | | ??????????# ###+########### | | ??????????### ###?????????????# # | | ????????????# #???????????????####+#### | | ????????????# #?????????????????? ??? | | ????????????# #??????????????????"""??? | | ????????????# #?????????????????"""" ?? | | ????????????# #?????????????????"""" ?? | | ????????????+ #????????????????""""" F? | | ????????????# #????????????????? "? | | ????????????# #####????????????????? | | ????????????# #??????????????????## | | ????????????# #???????????????????? | | ????????????+ #???????????????????? | | ????????????# +???????????????????? | | ????????????# ########????????????? | | ????????????# #????????????# | | ????????????# #????????????+ | | ????????????# #????????????# | | ????????????# #????????????? | | ????????????# #????????????? | | ????????????# #????????????? | +----------------------------------------------------+ Best States ------------- Heat Dissipation 43 Energy Generation 5 Energy Capacity 100 Matter Stores 259 Matter Capacity 300 Sight Range 16 Terrain Scan Density 10 Evasion (%) 50 Item Schematics ----------------- None Robot Schematics ------------------ None Fabricated ------------ Nothing Alien Tech Used ----------------- None Achievements -------------- Streaker Challenges ------------ None Game ------ Seed TrapTacticalAutocannon Manual? 0 Play Time 00:10:36 Cumulative 8.7 hours Start 2021.10.19 @ 03:12:01 End 2021.10.28 @ 11:30:06 Sessions 2 Manual Loads 0 Difficulty Rogue Special Mode None Game No. 18 Rogue 18 Adventurer 0 Explorer 0 Win Type - Total 0 Types 0/0/0/0/0/0/0/0/0 Lore% 7 Gallery% 16 Achievement% 7 Wizard Run 0 Options --------- ASCII 0 Keyboard 0 Movement Mouse Keybinds 0 Fullscreen 1 Font 24/Smallcaps Map View 76x50 Tactical HUD 1 Map Filters NONE Filters NONE Steam 1 RUN: 9e1a167d-6034-4904-a74f-719a55ea97cc